Cogmind - Beta 13 @@@ ROGUE MODE // 2024.07.08 @ 21:49:20 Player: weedlord420 Result: Self-destructed Performance ------------- Evolutions (2) 1000 Regions Visited (3) 600 Robots Destroyed (92) 460 Value Destroyed (2273) 2273 Prototype IDs (8) 160 Alien Tech Used (0) 0 Bonus (33) 33 TOTAL SCORE: 4526 Bonus ------- High Alert Combat Kills 33 Cogmind --------- Core Integrity 364/550 Matter 46/300 Energy 265/265 System Corruption 0% Temperature Cool (0) Movement Treading (240) Ox1 Location -8/Materials Parts ------- > --- POWER (1) -------- Improved Ion Engine > --- PROPULSION (4) --- Light Treads > --- UTILITY (4) ------ Medium Storage Unit Launcher Guidance Computer Core Shielding Improved Medium Armor Plating > --- WEAPON (2) ------- Improved Light Cannon Improved Light Cannon > --- INVENTORY (10) --- Improved Flight Unit Improved Flight Unit Improved Heat Sink Improved Sensor Array Improved Signal Interpreter Hardened Medium Armor Plating Hacking Suite Enhanced Autogun Flak Cannon Peak State ------------ > --- POWER ------------ Heavy Ion Engine > --- PROPULSION ------- Light Treads Light Treads Light Treads Advanced Treads > --- UTILITY ---------- Medium Storage Unit Core Shielding Improved Medium Armor Plating Hacking Suite > --- WEAPON ----------- Improved Assault Rifle Enhanced Autogun > --- INVENTORY -------- Improved Flight Unit Improved Flight Unit Improved Heat Sink Improved Signal Interpreter Launcher Guidance Computer Improved Medium Armor Plating Hacking Suite Shock Bomb Launcher Mini Grenade Launcher Flail [Rating: 28] Favorites ----------- Power Improved Ion Engine Engine Improved Ion Engine Propulsion Light Treads Treads Light Treads Utility Medium Storage Unit Storage Medium Storage Unit Processor Launcher Guidance Computer Hackware Hacking Suite Protection Core Shielding Weapon Improved Assault Rifle Energy Gun Heavy EM Shotgun Ballistic Gun Improved Assault Rifle Ballistic Cannon Improved Light Cannon Launcher Grenade Launcher Build | -11 -10 -9 -8 ------- Run | Yrd Mat Mat Mat Slots Evolved 4 | . . 2 2 Power . | . . . . Propulsion 2 | . . 2 . Utility 2 | . . . 2 Weapon . | . . . . Parts Attached 63 | 5 10 23 25 Power 5 | 1 1 2 1 Engine 5 | 1 1 2 1 Core . | . . . . Reactor . | . . . . Propulsion 21 | 2 1 12 6 Treads 21 | 2 1 12 6 Leg . | . . . . Wheel . | . . . . Hover . | . . . . Flight . | . . . . Utility 12 | . 2 2 8 Device . | . . . . Storage 2 | . 2 . . Processor 1 | . . . 1 Hackware 1 | . . . 1 Protection 8 | . . 2 6 Artifact . | . . . . Weapon 25 | 2 6 7 10 Energy Gun 1 | . . 1 . Energy Cannon . | . . . . Ballistic Gun 11 | 2 . 5 4 Ballistic Cannon 7 | . 3 1 3 Launcher 6 | . 3 . 3 Special Weapon . | . . . . Impact Weapon . | . . . . Slashing Weapon . | . . . . Piercing Weapon . | . . . . Special Melee Weapon . | . . . . Unidentified Prototypes 2 | . . 1 1 Parts Lost 10 | . . 3 7 Power . | . . . . Propulsion 5 | . . 1 4 Utility 3 | . . 1 2 Weapon 2 | . . 1 1 Highest Loss Streak 3 | . . 2 3 To Critical Strikes . | . . . . Average Slot Usage (%) 94 | . 84 98 95 Engine 11 | . 14 11 9 Treads 37 | . 28 43 33 Storage 11 | . 14 11 9 Protection 9 | . . 10 17 Ballistic Gun 13 | . 3 18 12 Ballistic Cannon 7 | . 21 1 3 Naked Turns . | . . . . Heaviest Build 39 | 9 25 26 39 Greatest Support 82 | 40 40 80 82 Greatest Overweight (x) 1 | . . . 1 Average Overweight (x) . | . . . . Largest Inventory Capacity 10 | 5 10 10 10 Average Capacity 9 | 5 9 10 10 Most Carried 10 | 5 10 10 10 Average Carried 8 | 1 6 9 9 Final Capacity 10 | 5 10 10 10 Final Carried 10 | 2 10 10 9 Class Distribution -------------------- 52% | Mutant 47% | Scavenger-Mutant Dominant Class ---------------- Mutant | -10/Materials Scavenger-Mutant | -9/Materials Scavenger-Mutant | -8/Materials Resources | -11 -10 -9 -8 ----------- Run | Yrd Mat Mat Mat Matter Collected 2419 | 227 404 1196 592 Remotely . | . . . . Salvage Created 3204 | . 369 2127 708 Parts 204 | . 32 139 33 Haulers Intercepted 9 | . 2 6 1 Recyclers Shooed 4 | . 2 2 . Parts Field Recycled . | . . . . Retrieved Matter . | . . . . Parts Self-Destructed . | . . . . Prevented . | . . . . Kills | -11 -10 -9 -8 ------- Run | Yrd Mat Mat Mat Combat Hostiles Destroyed 53 | . 8 32 13 Guns 36 | . 2 25 9 Cannons 15 | . 6 7 2 AOE 2 | . . . 2 Classes Destroyed 12 | . 5 6 1 Worker 3 | . . 3 . Builder 4 | . 1 3 . Tunneler 1 | . . 1 . Hauler 9 | . 2 6 1 Recycler 9 | . . 7 2 Operator 7 | . 1 4 2 Watcher 6 | . 2 4 . Swarmer 10 | . . 10 . Grunt 28 | . 8 11 9 Duelist 1 | . . 1 . Sentry 12 | . . 10 2 Specialist 2 | . . . 2 Best Kill Streak 7 | . 3 7 3 Combat Bots Only 4 | . 3 4 3 Max Kills in Single Turn 2 | . 2 1 2 Gunslinging . | . . . . Exploded 2 | . . . 2 Melee . | . . . . Uniques/NPCs Destroyed . | . . . . Combat | -11 -10 -9 -8 -------- Run | Yrd Mat Mat Mat Hostile Shots Fired 359 | . 35 138 186 Missed 117 | . 9 48 60 Damage Taken 3847 | . 343 1298 2206 Core 379 | . 20 173 186 Absorbed by Shields . | . . . . Redirected to Shielding 116 | . . 77 39 Regen/Repaired (Parts) 363 | . 87 276 . Core Remaining (%) 82 | 100 92 56 . Volleys Fired 274 | . 56 138 80 Largest 2 | . 2 2 2 Hottest 78 | . 78 78 78 Shots Fired 530 | . 95 276 159 Gun 330 | . 16 214 100 Cannon 187 | . 73 62 52 Launcher 13 | . 6 . 7 Special . | . . . . Kinetic 511 | . 89 270 152 Thermal . | . . . . Explosive 12 | . 6 . 6 Electromagnetic 7 | . . 6 1 Robot Hit Streak 18 | . 7 18 16 Robot Miss Streak 6 | . 6 5 5 Penetration Max . | . . . . Secondary Targets 1 | . . . 1 Max Gunslinging Chain 1 | . . . 1 Shots Hit Robots 322 | . 38 170 114 Core Hits 135 | . 18 81 36 Critical Kills 2 | . . 2 . Critical Parts Destroyed . | . . . . Critical Strikes 5 | . 1 3 1 Destroy 2 | . . 2 . Blast 3 | . 1 1 1 Melee Attacks . | . . . . Impact . | . . . . Slashing . | . . . . Piercing . | . . . . Sneak Attacks . | . . . . Combat Hostiles . | . . . . Follow-up Attacks . | . . . . Damage Inflicted 6345 | . 890 2940 2515 Guns 3457 | . 114 2162 1181 Cannons 2159 | . 622 755 782 Explosions 713 | . 138 23 552 Melee . | . . . . Ramming 16 | . 16 . . Kinetic 5501 | . 736 2802 1963 Thermal 23 | . . 23 . Explosive 674 | . 138 . 536 Electromagnetic 131 | . . 115 16 Impact . | . . . . Slashing . | . . . . Piercing . | . . . . Highest Corruption . | . . . . Average Corruption . | . . . . Corruption Purged . | . . . . Corruption Blocked . | . . . . Overload Shots . | . . . . Overflow Damage 76 | . 22 5 49 Projectiles 58 | . 22 . 36 Explosions 18 | . . 5 13 Melee . | . . . . Knockbacks 25 | . 10 4 11 Impact . | . . . . Kinetic 23 | . 9 4 10 Secondary 2 | . 1 . 1 Self-Inflicted Damage 39 | . . . 39 Shots 3 | . . . 3 Rammed 2 | . 2 . . Targets Rammed 2 | . 2 . . Kicked . | . . . . Crushed . | . . . . Highest Temperature 323 | . 195 198 323 Average Temperature 53 | . 51 42 63 Received Heat Transfer 1449 | . 207 447 795 Effects 2 | . . . 2 Shutdowns 1 | . . . 1 Energy Bleed 1 | . . . 1 Siege Activations . | . . . . Robots Corrupted . | . . . . Combat Hostiles . | . . . . Parts Fried . | . . . . Impact Corruptions . | . . . . Robots Melted . | . . . . Combat Hostiles . | . . . . Parts Melted . | . . . . Heat Transferred 50 | . . 50 . Parts Sabotaged . | . . . . Parts Stolen . | . . . . Parts Stripped . | . . . . Power Chain Reactions 1 | . . 1 . Alert | -11 -10 -9 -8 ------- Run | Yrd Mat Mat Mat Peak Influence 432 | . 201 418 432 Initial 176 | . . 3 176 Average 215 | . 92 246 311 Maximum Alert Level 2 | . 1 2 2 Low Security (%) 43 | 100 96 29 6 Level 1 52 | . 3 64 89 Level 2 3 | . . 5 4 Level 3 . | . . . . Level 4 . | . . . . Level 5 . | . . . . High Security . | . . . . Max Security . | . . . . Squads Dispatched 9 | . 2 3 4 Investigation 1 | . 1 . . Extermination . | . . . . Reinforcement 8 | . 1 3 4 Assault . | . . . . Garrison . | . . . . Intercept . | . . . . Searches Triggered . | . . . . Construction Impeded . | . . . . Haulers Reinforced . | . . . . Active Scanning Responses . | . . . . Cargo Convoy Interrupts . | . . . . Stealth | -11 -10 -9 -8 --------- Run | Yrd Mat Mat Mat Distress Signals 4 | . . 3 1 Communications Jammed . | . . . . Distress Signals . | . . . . Times Spotted 92 | . 15 54 23 Peak Tracking Total 5 | . 3 5 4 Tactical Retreats 4 | . 1 . 3 Traps | -11 -10 -9 -8 ------- Run | Yrd Mat Mat Mat Traps Triggered 1 | . 1 . . Indirectly . | . . . . Trap Hack Attempts . | . . . . Triggered . | . . . . Disarmed . | . . . . Reprogrammed . | . . . . Reused . | . . . . Traps Extracted . | . . . . Installed . | . . . . Triggered . | . . . . Machines | -11 -10 -9 -8 ---------- Run | Yrd Mat Mat Mat Machines Disabled 3 | . 1 2 . Max in Single Turn 1 | . 1 1 . Machines Repaired . | . . . . Machines Dismantled . | . . . . Machines Sabotaged . | . . . . Overloaded Fab Kills . | . . . . Hacking | -11 -10 -9 -8 --------- Run | Yrd Mat Mat Mat Machines Accessed 13 | . 5 7 1 Terminals 8 | . 4 3 1 Fabricators . | . . . . Repair Stations 3 | . 1 2 . Recycling Units . | . . . . Scanalyzers 2 | . . 2 . Garrison Access . | . . . . Total Hacks 41 | . 12 27 2 Successful 25 | . 6 19 . Failed 16 | . 6 8 2 Catastrophic . | . . . . Database Lockouts . | . . . . Manual . | . . . . Terminals 17 | . 9 6 2 Fabricators . | . . . . Repair Stations 12 | . 3 9 . Recycling Units . | . . . . Scanalyzers 12 | . . 12 . Garrison Access . | . . . . Terminal Hacks 7 | . 4 3 . Prototype ID Bank 3 | . 1 2 . Terminal Index 1 | . 1 . . Unreport Threat 1 | . . 1 . Locate Traps 1 | . 1 . . Registered Components 1 | . 1 . . Fabricator Hacks . | . . . . Repair Station Hacks 8 | . 2 6 . Scan Component 4 | . 1 3 . Repair 4 | . 1 3 . Recycling Unit Hacks . | . . . . Scanalyzer 10 | . . 10 . Insert Component 5 | . . 5 . Analyze 5 | . . 5 . Garrison Access Hacks . | . . . . Unauthorized Hacks . | . . . . Terminals . | . . . . Fabricators . | . . . . Repair Stations . | . . . . Recycling Units . | . . . . Scanalyzers . | . . . . Garrison Access . | . . . . Data Cores Recovered 2 | . . 1 1 Used . | . . . . Hacking Detections 8 | . 3 4 1 Full Trace Events 2 | . 1 1 . Feedback Events . | . . . . Feedback Blocked . | . . . . Robot Schematics Acquired . | . . . . Robots Built . | . . . . Authchips . | . . . . Time . | . . . . Total Robot Build Rating . | . . . . Part Schematics Acquired 4 | . . 4 . Parts Built . | . . . . Authchips . | . . . . Time . | . . . . Total Part Build Rating . | . . . . Parts Repaired 4 | . 1 3 . Time 129 | . 26 103 . Parts Recycled . | . . . . Recycled Matter . | . . . . Retrieved Matter . | . . . . Retrieved Components . | . . . . Parts Scanalyzed 4 | . . 4 . Part Schematics Acquired 4 | . . 4 . Parts Damaged . | . . . . Bothacking | -11 -10 -9 -8 ------------ Run | Yrd Mat Mat Mat Used RIF Installer . | . . . . Robots Hacked . | . . . . Non-combat . | . . . . Combat . | . . . . Robot Hacks Applied . | . . . . Relay Couplers Released . | . . . . Fabnet Peak Effective % . | . . . . Robots Rewired . | . . . . Allies Hacked . | . . . . Hacks Repelled . | . . . . Allies | -11 -10 -9 -8 -------- Run | Yrd Mat Mat Mat Total Allies . | . . . . Largest Group . | . . . . Highest-Rated Group . | . . . . Highest-Rated Ally . | . . . . Total Orders . | . . . . Ally Attacks . | . . . . Total Damage . | . . . . Kills . | . . . . Allies Corrupted . | . . . . Allies Melted . | . . . . Intel | -11 -10 -9 -8 ------- Run | Yrd Mat Mat Mat Robot Analysis Total . | . . . . Derelict Logs Recovered . | . . . . Drone Launches . | . . . . Drone Recoveries . | . . . . Exploration | -11 -10 -9 -8 ------------- Run | Yrd Mat Mat Mat Turns Passed 4890 | 84 1213 2689 904 Spaces Moved 2331 | 53 618 1275 385 Core 11 | 11 . . . Treads 2320 | 42 618 1275 385 Legs . | . . . . Wheels . | . . . . Hover . | . . . . Flight . | . . . . Fastest Speed 50 | 50 160 160 155 Average Speed 159 | 137 160 160 160 Slowest Speed 240 | 160 160 160 240 Overloaded Moves . | . . . . Propulsion Burnouts . | . . . . Robots Hopped . | . . . . Cave-ins Triggered . | . . . . Exploration Rate (%) 53 | 3 93 98 20 Regions Visited 3 Branch Regions . Pre-discovered Areas . | . . . . Known Exits Taken . | . . . . Unknown Exits Taken 3 | 1 1 1 . Scrap Searched . | . . . . Spaces Dug 20 | . 6 . 14 Terrain Destroyed 92 | . 40 1 51 Melee . | . . . . Projectile 5 | . 4 1 . AOE 87 | . 36 . 51 Terrain Rammed . | . . . . Walls Destroyed . | . . . . Machines Disabled . | . . . . Actions | -11 -10 -9 -8 --------- Run | Yrd Mat Mat Mat Total 2996 | 64 745 1653 534 Wait 239 | . 41 178 20 Move 2328 | 52 617 1274 385 Hop . | . . . . Pick Up 49 | 7 14 18 10 Fast Attach 11 | . . 7 4 Attach 18 | 5 3 5 5 Detach 1 | . 1 . . Swap 34 | . 7 11 16 Drop 40 | . 4 22 14 Fire 274 | . 56 138 80 Melee . | . . . . Ram . | . . . . Kick . | . . . . Crush 2 | . 2 . . Escape Stasis . | . . . . Rewire . | . . . . Trap . | . . . . Miscellaneous . | . . . . Route ------- -11/Scrapyard -10/Materials (discovered 3 exits: *Mat x3) -9/Materials (discovered 5 exits: *Mat x2 / [*Min x2] / [*Sto]) -8/Materials History --------- Turn | Location | Event 6 | -11/Scrapyard | Discovered new exit (range 13) 85 | -11/Scrapyard | Entered Materials 305 | -10/Materials | Build established: Mutant 396 | -10/Materials | Discovered new exit (range 4) 835 | -10/Materials | Discovered new exit (range 13) 874 | -10/Materials | Repaired Lgt. Treads 1246 | -10/Materials | Discovered new exit (range 15) 1298 | -10/Materials | Entered another Materials area 1298 | -9/Materials | Evolved 2 slots: Propulsion x2 1923 | -9/Materials | Discovered new exit (range 11) 2106 | -9/Materials | Discovered new exit (range 10) 2337 | -9/Materials | Discovered new exit (range 15) 2575 | -9/Materials | Build established: Scavenger-Mutant 2998 | -9/Materials | Discovered new exit (range 12) 3200 | -9/Materials | Repaired Imp. Assault Rifle 3475 | -9/Materials | Repaired Lgt. Treads 3502 | -9/Materials | Repaired Lgt. Treads 3913 | -9/Materials | Discovered new exit (range 7) 3987 | -9/Materials | Entered another Materials area 3987 | -8/Materials | Evolved 2 slots: Utility x2 4849 | -8/Materials | Lost 3 parts (2n1u) 4891 | -8/Materials | Self-destructed Last Messages --------------- Trooper. K-01 Serf collects debris. M-28 Smith repairs Aluminum Leg. K-01 Serf collects debris. Adv. Treads destroyed. K-01 Serf collects debris. Lgt. Treads destroyed. Imp. Medium Armor Plating destroyed. U-05 Engineer builds a Wall. Acquired 3 matter. G-47 Trooper knocked back. Lgt. Treads destroyed. G-47 Trooper knocked back. Destroyed Aluminum Leg. Destroyed Lgt. Nuclear Core. G-47 Trooper knocked back. G-47 Trooper suffers critical hit (Blast). G-47 Trooper destroyed. Acquired 2 matter. Acquired 44 matter. Map ----- +----------------------------------------------------+ | ??# # = # """" #? | | ??# """ # #####+####+##### """" #? | | ??# """ # ## # [ ## #? | | ??# """ " ##""" !# ###########? | | ??# #!!##"R # """ #??????????? | | ??######### !##""" # """ #??????????? | | ??# T # = *# "" [# """ #??????????? | | ?## " =[ # # #??????????? | | ?# #! ######## """ #??????????? | | ?## [ # [ #??????# """ ###########? | | ??# / ! ######??????# """ ## #? | | ??# #???????????# ## """#? | | ??# """ #???????????####+###= [ """#? | | ??# """ ###???????#????# # """#? | | ??# """ # #?????? ???# + #? | | ??# #?????? ???#u # #? | | ??#! ! ##?????? ???# # "Y" #? | | ?##"#" ##?????? ???# # """ [ #? | | ## ##" #?????# ?# # =[ #? | | # # "######## """# ####+#####? | | ## # "" # """# #??# #????? | | ?# # ## """ # """# #??# #????? | | # # #" """ # = #u #??# #????? | | ## # ## """ # + #??# #????? | | # # #" # # #??# #????? | | ## "! % ## ] # #@ #??# #????? | | ?######+######+########## #??# #####? | | ??## %% % #### !!#? | | ??## %% ! % % % [ !#? | | ???# ! ###### ||#? | | ???# ########### ########????#!||#? | | ???# ########### # ##????????#[ !#? | | ???# ## # ## #????????# !#? | | ???# ## # # ###############? | | ???# ##! """ ## #?????? | | ???# "# """ ## #?????? | | ???# ##? """ ?+ % #?????? | | ??? ??? #####"######+#####????? | | ?? ] ?? """ ???? # #????? | | ?? ???"""??? # """ """ #????? | | ?? %% %???""???# """ # """ """ #????? | | ?##% %??? ????# """ # """ """ #????? | | ??###+##????????# """ # #????? | | ????????????????# # #????? | | ????????????????######## #????? | | ???????????????????????# """T""" #????? | | ???????????????????????###########????? | | ??????????????????????????????????????? | | ??????????????????????????????????????? | | ??????????????????????????????????????? | +----------------------------------------------------+ Best States ------------- Heat Dissipation 31 Energy Generation 14 Energy Capacity 280 Matter Stores 300 Matter Capacity 300 Sight Range 16 Terrain Scan Density 10 Armor Coverage 450 Core Shielding 20 Propulsion Shielding 33 Evasion (%) 50 Launcher Accuracy 20 Recoil Reduction 4 Offensive Hacking 10 Item Schematics ----------------- Imp. Flight Unit | -9/Materials | Scanalyzed Hacking Suite | -9/Materials | Scanalyzed Hrd. Light Armor Plating | -9/Materials | Scanalyzed Imp. Signal Interpreter | -9/Materials | Scanalyzed Robot Schematics ------------------ None Fabricated ------------ Nothing Alien Tech Used ----------------- None Achievements -------------- None Challenges ------------ None Game ------ Seed WeldingSystemPrototype Manual? 0 Play Time 00:28:26 Cumulative 21.7 hours Start 2024.07.07 @ 14:18:42 End 2024.07.08 @ 21:49:20 Sessions 3 Manual Loads 0 Difficulty Rogue Special Mode None Game No. 49 Rogue 48 Adventurer 1 Explorer 0 Win Type - Total 0 Types 0/0/0/0/0/0/0/0/0 Lore% 9 Gallery% 22 Achievement% 19 Wizard Run 0 Options --------- Layout 1 ASCII 0 Keyboard 0 Movement Mouse Keybinds 0 Fullscreen 2 Font 24/Terminus Map View 50x35 Zoom Use 0% Tactical HUD 0 Map Filters NONE Filters NONE Steam 1 RUN: 9893520c-45dc-437f-8c28-7c7bfb6c91a2